bitfinex/quotes_SOLUSD_20220228
["timestamp","ask_amount","ask_price","bid_price","bid_amount"]
[1646068210361,1.37925896,94.849,94.746,2.93171154]
[1646068210559,4.219,94.848,94.746,65.62171154]
[1646068210760,4.219,94.848,94.747,2.30543809]
[1646068210974,29.48704342,94.848,94.747,2.30543809]
[1646068211161,25.26804342,94.847,94.747,64.99543809]
[1646068211364,4.219,94.846,94.747,64.99543809]
[1646068211560,28.9053,94.846,94.751,62.69]
[1646068211760,25.26804342,94.845,94.752,3.00128066]
[1646068211960,4.219,94.844,94.752,3.00128066]
[1646068212362,25.26804342,94.843,94.752,3.00128066]
[1646068212564,25.26804342,94.843,94.759,62.69]
[1646068212768,27.55784538,94.878,94.771,62.69]
[1646068212966,4.219,94.887,94.789,62.69]
[1646068213264,4.217,94.905,94.816,104.5]
[1646068213471,4.216,94.907,94.822,104.5]
[1646068213664,5.60194371,94.92,94.823,62.69]
[1646068213865,4.216,94.92,94.839,62.69]
[1646068214068,4.216,94.92,94.842,104.5]
[1646068214267,4.215,94.938,94.843,65.56527051]
[1646068214465,4.215,94.938,94.843,62.69]
[1646068214666,5.69889985,94.939,94.843,62.69]
[1646068214868,4.215,94.937,94.843,62.69]
[1646068215065,4.215,94.938,94.843,62.69]
[1646068215270,4.215,94.938,94.841,62.69]
[1646068215467,22.05986179,94.938,94.841,62.69]
[1646068216165,4.215,94.938,94.841,62.69]
[1646068216367,4.215,94.938,94.842,2.26656159]
[1646068216568,70.7334,94.95,94.843,62.69]
[1646068216766,70.7334,94.95,94.844,2.65983392]
[1646068217770,1.69683299,94.949,94.841,2.46261185]
[1646068217968,4.215,94.948,94.84,42.84253888]
[1646068218167,24.39986179,94.948,94.84,42.84253888]
[1646068218366,21.73839273,94.947,94.84,42.84253888]
[1646068218571,1.35784172,94.946,94.84,42.84253888]
[1646068218769,1.35784172,94.946,94.842,2.88718459]
[1646068218968,85.8934,94.95,94.843,62.69]
[1646068219170,70.7334,94.95,94.844,2.3168921]
[1646068219366,20.18486179,94.963,94.844,2.3168921]
[1646068219570,20.18486179,94.963,94.844,1.8168921]
[1646068220781,43.70586179,94.963,94.844,1.8168921]
[1646068222170,15.16,94.96,94.844,1.8168921]
[1646068222471,21.5998137,94.959,94.841,62.69]
[1646068222675,5.96792794,94.958,94.841,62.69]
[1646068222875,26.15278973,94.958,94.841,62.69]
[1646068223171,1.66269831,94.956,94.841,62.69]
[1646068223372,4.215,94.955,94.841,62.69]
[1646068223573,15.16,94.95,94.841,62.69]
[1646068223971,1.85962615,94.948,94.841,62.69]
[1646068224371,20.18486179,94.947,94.841,62.69]
[1646068224771,1.47529593,94.946,94.841,62.69]
[1646068224971,4.215,94.945,94.841,62.69]
[1646068225373,5.95196914,94.945,94.841,62.69]
[1646068225771,1.59328682,94.944,94.841,62.69]
[1646068225975,4.215,94.943,94.841,62.69]
[1646068226372,4.215,94.943,94.851,62.69]
[1646068226572,21.77814861,94.944,94.851,62.69]
[1646068226573,1.59328682,94.944,94.851,62.69]
[1646068226772,24.5925,94.946,94.851,62.69]
[1646068227372,24.5925,94.946,94.862,104.5]
[1646068227972,24.5925,94.946,94.869,62.69]
[1646068228178,4.214,94.967,94.885,62.69]
[1646068228374,4.213,94.977,94.892,104.5]
[1646068228576,4.213,94.977,94.905,62.69]
[1646068228774,10.42036791,95.001,94.922,104.5]
[1646068228975,15.16,95.07,94.943,62.69]
[1646068229173,20.5617763,95.027,94.946,57.87020206]
[1646068229374,1.75949005,95.026,94.92,15.16]
[1646068229575,4.211,95.025,94.91,15.16]
[1646068229773,26.61249615,95.025,94.91,15.16]
[1646068229974,1.691112,95.024,94.91,15.16]
[1646068230176,1.78903115,95.023,94.91,15.16]
[1646068230474,5.56972996,95.022,94.911,49.43558237]
[1646068230677,1.67118201,95.021,94.911,49.43558237]
[1646068230874,4.212,95.02,94.911,49.43558237]
[1646068231275,5.9336102,95.02,94.911,49.43558237]
[1646068231473,20.5617763,95.019,94.911,49.43558237]
[1646068231678,5.97107998,95.018,94.91,15.16]
[1646068231878,5.97107998,95.018,94.86,192.43624888]
[1646068232081,26.69229612,95.017,94.86,2.92624888]
[1646068232274,5.8800353,95.016,94.841,65.70365791]
[1646068232474,38.24036508,95.016,94.881,62.69]
[1646068232679,1.56301768,95.015,94.883,62.69]
[1646068232883,1.42596369,95.014,94.888,104.5]
[1646068233076,15.16,95.01,94.902,104.5]
[1646068233280,1.59212115,95.009,94.904,104.5]
[1646068233575,4.212,95.008,94.904,104.5]
[1646068233779,1.59212115,95.009,94.904,104.5]
[1646068234576,1.59212115,95.009,94.903,58.95466971]
[1646068234977,4.212,95.008,94.903,58.95466971]
[1646068235476,19.7817763,95.008,94.903,58.95466971]
[1646068235676,1.74931749,95.007,94.893,47.1942]
[1646068235882,4.212,95.006,94.88,15.16]
[1646068236077,4.212,95.006,94.861,62.69]
[1646068236277,8.31960106,95.005,94.871,62.69]
[1646068236476,15.16,95.0,94.871,62.69]
[1646068236679,27.6194,94.999,94.873,159.64230077]
[1646068236877,1.78262384,94.998,94.873,159.64230077]
[1646068237177,4.213,94.997,94.873,159.64230077]
[1646068237402,1.50313618,94.996,94.873,159.64230077]
[1646068237677,4.213,94.995,94.873,55.14230077]
[1646068237977,1.50043062,94.993,94.874,167.19]
[1646068238178,4.213,94.992,94.874,167.19]
[1646068238380,4.213,94.992,94.874,62.69]
[1646068238678,30.5947763,94.992,94.873,55.14230077]
[1646068238976,1.437051,94.979,94.873,55.14230077]
[1646068239180,1.45193035,94.977,94.873,55.14230077]
[1646068240080,12.65,94.97,94.873,55.14230077]
[1646068240384,1.76404448,94.969,94.873,55.14230077]
[1646068241381,1.71510426,94.968,94.873,55.14230077]
[1646068242083,21.49688056,94.968,94.873,55.14230077]
[1646068242281,1.77766778,94.967,94.873,55.14230077]
[1646068242481,24.5347,94.966,94.873,55.14230077]
[1646068242682,1.70212106,94.965,94.873,55.14230077]
[1646068243885,19.7817763,94.964,94.851,23.2832]
[1646068244108,12.65,94.95,94.851,23.2832]
[1646068244284,1.69719035,94.948,94.851,23.2832]
[1646068244483,4.214,94.947,94.851,23.2832]
[1646068244885,5.84565506,94.947,94.852,43.09832228]
[1646068245688,19.7817763,94.946,94.852,43.09832228]
[1646068245889,5.97152104,94.945,94.852,43.09832228]
[1646068246093,1.3550464,94.939,94.852,43.09832228]
[1646068246286,4.215,94.938,94.852,43.09832228]
[1646068246889,1.3550464,94.939,94.852,43.09832228]
[1646068247292,4.215,94.938,94.852,43.09832228]
[1646068249299,1.3550464,94.939,94.852,43.09832228]
[1646068249701,4.215,94.938,94.852,43.09832228]
[1646068250102,23.9967763,94.938,94.852,43.09832228]
[1646068250302,21.49667365,94.937,94.852,43.09832228]
[1646068250504,5.85129384,94.936,94.852,43.09832228]
[1646068250905,24.1485,94.935,94.852,43.09832228]
[1646068251113,5.61272912,94.934,94.852,43.09832228]
[1646068251917,12.65,94.93,94.852,43.09832228]
[1646068252118,12.65,94.93,94.833,23.42]
[1646068252119,1.36527588,94.929,94.833,23.42]
[1646068252319,4.215,94.928,94.833,23.42]
[1646068252518,25.43960438,94.928,94.833,23.42]
[1646068252717,25.43960438,94.928,94.789,22.9687]
[1646068252718,1.40033904,94.927,94.789,22.9687]
[1646068252921,4.216,94.926,94.79,22.8073]
[1646068253120,18.35698715,94.926,94.792,62.69]
[1646068253321,1.83188926,94.925,94.792,62.69]
[1646068253521,12.65,94.91,94.792,62.69]
[1646068253724,52.75610597,94.909,94.792,62.69]
[1646068253923,1.63569038,94.908,94.792,62.69]
[1646068254345,4.217,94.907,94.792,62.69]
[1646068254724,1.63903096,94.906,94.791,51.95432799]
[1646068255022,5.88284942,94.905,94.791,51.95432799]
[1646068255222,25.66462572,94.905,94.791,51.95432799]
[1646068255422,1.45131669,94.904,94.791,51.95432799]
[1646068255722,1.77055206,94.899,94.791,51.95432799]
[1646068255922,4.217,94.898,94.791,51.95432799]
[1646068256122,1.6378987,94.897,94.791,51.95432799]
[1646068256326,4.217,94.896,94.791,51.95432799]
[1646068256525,1.54385668,94.894,94.791,51.95432799]
[1646068256724,4.217,94.893,94.791,51.95432799]
[1646068257526,1.76779835,94.891,94.791,51.95432799]
[1646068257724,1.47120334,94.889,94.791,51.95432799]
[1646068257925,4.217,94.888,94.731,4.217]
[1646068258129,21.68844297,94.888,94.748,47.7037]
[1646068258328,4.218,94.887,94.748,47.7037]
[1646068258628,1.39969886,94.886,94.748,47.7037]
[1646068258830,4.218,94.885,94.748,47.7037]
[1646068259029,0.4,94.878,94.749,60.73558086]
[1646068259229,12.65,94.87,94.749,60.73558086]
[1646068259428,51.57841498,94.869,94.749,60.73558086]
[1646068259627,56.79563639,94.869,94.749,60.73558086]
[1646068259828,29.17964672,94.868,94.749,60.73558086]
[1646068260029,5.59404928,94.867,94.749,60.73558086]
[1646068260227,1.68983406,94.866,94.749,60.73558086]
[1646068260429,4.219,94.865,94.751,104.5]
[1646068260628,1.68983406,94.866,94.751,175.69]
[1646068261227,1.62733214,94.865,94.751,175.69]
[1646068261432,1.62733214,94.865,94.751,167.19]
[1646068261627,1.75747341,94.863,94.751,167.19]
[1646068261830,4.219,94.862,94.751,167.19]
[1646068262028,21.68844297,94.862,94.751,167.19]
[1646068262227,23.03939447,94.861,94.751,167.19]
[1646068262427,5.95196405,94.86,94.751,167.19]
[1646068262628,1.6277891,94.859,94.751,167.19]
[1646068262829,4.219,94.858,94.751,167.19]
[1646068263027,1.75613926,94.856,94.751,167.19]
[1646068263428,44.81704297,94.857,94.752,3.06929874]
[1646068263628,23.1286,94.857,94.754,2.91310412]
[1646068264033,23.1411,94.869,94.754,2.91310412]
[1646068264232,4.218,94.892,94.755,175.93678921]
[1646068264433,23.932,94.893,94.756,3.07136335]
[1646068264630,1.71575812,94.892,94.772,104.5]
[1646068264830,4.217,94.891,94.775,62.69]
[1646068265030,10.53052492,94.891,94.775,62.69]
[1646068265230,1.54589905,94.89,94.775,62.69]
[1646068265432,1.64325356,94.889,94.775,62.69]
[1646068265630,29.64522145,94.889,94.775,62.69]
[1646068265831,29.64522145,94.889,94.776,62.69]
[1646068266033,21.68844297,94.888,94.789,104.5]
[1646068266232,4.217,94.887,94.801,62.69]
[1646068266434,4.217,94.892,94.792,50.06483793]
[1646068266635,5.57796455,94.892,94.793,62.69]
[1646068267235,5.57796455,94.892,94.795,62.69]
[1646068267735,5.57796455,94.892,94.792,50.06483793]
[1646068267934,21.68844297,94.891,94.792,50.06483793]
[1646068268133,6.07718207,94.89,94.792,50.06483793]
[1646068268534,21.68844297,94.889,94.792,50.06483793]
[1646068268734,1.67485001,94.888,94.792,50.06483793]
[1646068269137,21.68844297,94.887,94.792,50.06483793]
[1646068269336,5.6010279,94.886,94.792,50.06483793]
[1646068269535,1.3840279,94.886,94.792,50.06483793]
[1646068269735,21.68844297,94.885,94.792,50.06483793]
[1646068269938,5.82973684,94.884,94.792,50.06483793]
[1646068270138,1.61273684,94.884,94.792,50.06483793]
[1646068270338,21.68844297,94.883,94.792,50.06483793]
[1646068270538,1.35827339,94.882,94.792,50.06483793]
[1646068270738,24.9982,94.881,94.792,50.06483793]
[1646068270938,1.76945863,94.88,94.792,50.06483793]
[1646068271141,23.4579016,94.88,94.792,50.06483793]
[1646068271339,1.72709419,94.879,94.792,50.06483793]
[1646068271538,24.80220383,94.879,94.792,50.06483793]
[1646068271742,1.75939946,94.878,94.792,50.06483793]
[1646068271938,1.7861172,94.877,94.792,50.06483793]
[1646068272139,24.86122684,94.877,94.792,50.06483793]
[1646068272339,1.61056988,94.876,94.792,50.06483793]
[1646068272640,24.75288931,94.875,94.792,50.06483793]
[1646068272839,1.67996211,94.874,94.792,50.06483793]
[1646068273040,24.75507175,94.874,94.792,50.06483793]
[1646068273240,23.07510964,94.873,94.793,104.5]
[1646068273441,23.07510964,94.873,94.792,50.06483793]
[1646068274248,23.07510964,94.873,94.793,62.69]
[1646068274445,24.9982,94.881,94.801,62.69]
[1646068274649,23.07510964,94.893,94.811,62.69]
[1646068274847,5.0,94.899,94.817,62.69]
[1646068275056,23.07510964,94.911,94.833,62.69]
[1646068275244,4.216,94.933,94.843,62.69]
[1646068275441,4.216,94.933,94.836,51.22161477]
[1646068275442,4.216,94.933,94.852,104.5]
[1646068275641,23.07510964,94.932,94.853,59.84652051]
[1646068275841,4.215,94.931,94.853,59.84652051]
[1646068276241,23.07510964,94.93,94.854,62.69]
[1646068276443,4.215,94.942,94.855,2.60943735]
[1646068276743,23.07510964,94.93,94.853,59.84652051]
[1646068277143,1.45237129,94.929,94.853,59.84652051]
[1646068277644,1.67102622,94.927,94.853,59.84652051]
[1646068278043,23.07510964,94.926,94.853,59.84652051]
[1646068279246,24.48823872,94.926,94.824,62.69]
[1646068279548,45.8987,94.925,94.824,62.69]
[1646068279948,68.97380964,94.925,94.824,62.69]
[1646068280247,23.07510964,94.924,94.826,62.69]
[1646068280847,23.07510964,94.924,94.826,87.1648]
[1646068281549,23.07510964,94.924,94.83,62.69]
[1646068281751,23.07510964,94.924,94.831,62.69]
[1646068282751,23.07510964,94.924,94.832,104.5]
[1646068284252,4.215,94.936,94.851,62.69]
[1646068284450,22.86494297,94.941,94.862,104.5]
[1646068284651,15.8142,94.943,94.864,104.5]
[1646068285053,22.86494297,94.942,94.864,104.5]
[1646068285473,15.8142,94.943,94.864,104.5]
[1646068285676,47.0683,94.953,94.872,104.5]
[1646068286075,69.93324297,94.953,94.872,104.5]
[1646068286674,69.93324297,94.953,94.875,62.69]
[1646068286875,47.0683,94.953,94.882,104.5]
[1646068287074,47.0683,94.953,94.884,104.5]
[1646068291277,22.86494297,94.969,94.892,104.5]
[1646068291877,22.86494297,94.969,94.897,62.69]
[1646068292081,23.8418,94.981,94.902,104.5]
[1646068292482,22.86494297,94.983,94.902,104.5]
[1646068292682,22.86494297,94.983,94.911,167.19]
[1646068292882,112.7,95.046,94.911,167.19]
[1646068292883,22.23696055,95.0,94.912,2.43338351]
[1646068293093,21.11458516,95.0,94.914,167.19]
[1646068293287,4.212,95.038,94.915,3.0728798]
[1646068293488,4.211,95.061,94.931,167.19]
[1646068293784,4.211,95.061,94.933,167.19]
[1646068293984,1.8623746,95.07,94.933,167.19]
[1646068293985,17.71757985,95.06,94.934,2.47942589]
[1646068294189,30.04128536,95.059,94.936,167.19]
[1646068294393,1.72775674,95.058,94.951,167.19]
[1646068294586,4.21,95.057,94.959,62.69]
[1646068294788,4.21,95.057,94.961,62.69]
[1646068295186,17.71757985,95.056,94.961,62.69]
[1646068295388,5.98920998,95.055,94.961,62.69]
[1646068295790,5.98920998,95.055,94.956,62.69]
[1646068296088,17.71757985,95.054,94.955,23.0282]
[1646068296287,5.91159246,95.053,94.955,23.0282]
[1646068296689,17.71757985,95.052,94.955,23.0282]
[1646068296888,5.61464902,95.051,94.901,2.60474052]
[1646068297089,5.61464902,95.051,94.777,65.42599702]
[1646068297090,1.40464902,95.051,94.921,62.69]
[1646068297290,1.61047706,95.049,94.921,62.69]
[1646068297499,10.30047706,95.049,94.921,62.69]
[1646068297692,32.35031831,95.048,94.92,12.65]
[1646068297892,1.59105802,95.047,94.921,50.68019951]
[1646068298092,6.05946341,95.046,94.921,50.68019951]
[1646068298291,23.77704326,95.046,94.921,50.68019951]
[1646068298491,1.59490424,95.044,94.921,50.68019951]
[1646068298692,12.65,95.04,94.921,50.68019951]
[1646068298891,1.39492205,95.039,94.921,50.68019951]
[1646068299191,1.8729739,95.037,94.921,50.68019951]
[1646068299594,11.51350917,95.036,94.921,50.68019951]
[1646068299792,1.76932186,95.029,94.921,50.68019951]
[1646068300002,1.56338619,95.028,94.921,50.68019951]
[1646068300292,11.51350917,95.028,94.921,50.68019951]
[1646068300492,25.91630236,95.027,94.921,50.68019951]
[1646068300692,1.35980993,95.026,94.921,50.68019951]
[1646068300892,12.8733191,95.026,94.921,50.68019951]
[1646068301194,14.6506903,95.025,94.921,50.68019951]
[1646068301392,1.3934454,95.024,94.921,50.68019951]
[1646068301595,1.3934454,95.024,94.921,113.37019951]
[1646068302091,4.211,95.023,94.921,113.37019951]
[1646068303399,12.461,95.023,94.912,48.5559]
[1646068303593,1.59402144,95.022,94.912,48.5559]
[1646068303792,4.211,95.021,94.912,48.5559]
[1646068304393,4.211,95.021,94.913,60.35383268]
[1646068305397,4.211,95.021,94.914,104.5]
[1646068306795,4.211,95.021,94.915,62.69]
[1646068306994,1.59402144,95.022,94.915,62.69]
[1646068307195,1.59402144,95.022,94.925,62.69]
[1646068307397,1.59402144,95.022,94.927,62.69]
[1646068307594,1.59402144,95.022,94.929,62.69]
[1646068307794,1.59402144,95.022,94.932,104.5]
[1646068307997,1.59402144,95.022,94.931,62.69]
[1646068308899,1.59402144,95.022,94.929,62.69]
[1646068310398,1.59402144,95.022,94.928,54.87071464]
[1646068312300,4.211,95.021,94.928,54.87071464]
[1646068312701,10.311,95.021,94.926,23.8873]
[1646068312897,1.39793671,95.02,94.926,23.8873]
[1646068313096,4.211,95.019,94.926,23.8873]
[1646068313697,4.211,95.019,94.927,48.50296349]
[1646068314098,4.211,95.025,94.927,48.50296349]
[1646068314397,9.06172501,95.024,94.927,48.50296349]
[1646068314598,5.8120698,95.023,94.927,48.50296349]
[1646068314799,1.58235628,95.019,94.927,48.50296349]
[1646068314997,4.211,95.018,94.927,48.50296349]
[1646068315407,5.81027357,95.018,94.927,48.50296349]
[1646068315598,1.35392065,95.016,94.927,48.50296349]
[1646068315901,4.211,95.015,94.927,48.50296349]
[1646068316099,23.071,95.014,94.927,48.50296349]
[1646068316298,5.86858155,95.013,94.927,48.50296349]
[1646068317199,15.19,95.01,94.927,48.50296349]
[1646068317399,5.8645428,95.009,94.927,48.50296349]
[1646068318807,11.51350917,95.008,94.927,48.50296349]
[1646068319005,5.86706412,95.007,94.927,48.50296349]
[1646068319411,11.51350917,95.006,94.886,24.8673]
[1646068319613,5.85063746,95.005,94.886,24.8673]
[1646068320017,11.51350917,95.004,94.886,24.8673]
[1646068320213,15.19,95.0,94.886,24.8673]
[1646068320414,5.59041844,94.999,94.913,44.07806311]
[1646068320816,23.0684,94.998,94.913,44.07806311]
[1646068321019,5.60457828,94.997,94.913,44.07806311]
[1646068323219,11.00679201,94.996,94.913,44.07806311]
[1646068323420,6.03626578,94.995,94.913,44.07806311]
[1646068324421,6.03626578,94.995,94.886,24.8673]
[1646068325424,6.03626578,94.995,94.903,47.5251385]
[1646068325824,15.09799079,94.995,94.886,24.8673]
[1646068326024,18.88056749,94.994,94.886,24.8673]
[1646068326229,5.78663678,94.993,94.886,24.8673]
[1646068326424,15.19,94.99,94.886,24.8673]
[1646068326630,5.9616786,94.989,94.886,24.8673]
[1646068326833,5.9616786,94.989,94.887,46.33982316]
[1646068327235,5.9616786,94.989,94.888,167.19]
[1646068328540,5.9616786,94.989,94.887,46.33982316]
[1646068328744,1.46542401,94.988,94.887,46.33982316]
[1646068328940,4.213,94.987,94.887,46.33982316]
[1646068329142,21.40880457,94.987,94.887,46.33982316]
[1646068329341,30.52518436,94.986,94.887,46.33982316]
[1646068329541,5.86291237,94.985,94.887,46.33982316]
[1646068329742,15.19,94.97,94.887,46.33982316]
[1646068329941,1.70972827,94.968,94.887,46.33982316]
[1646068330643,4.213,94.992,94.897,104.5]
[1646068330944,4.213,94.992,94.902,55.73663494]
[1646068331143,1.53537274,94.995,94.902,55.73663494]
[1646068331841,1.53537274,94.995,94.904,104.5]
[1646068332042,1.53537274,94.995,94.903,24.6046]
[1646068332244,4.212,94.994,94.903,24.6046]
[1646068332444,1.53537274,94.995,94.903,24.6046]
[1646068333045,1.53537274,94.995,94.904,167.19]
[1646068333245,22.5921,94.998,94.904,167.19]
[1646068333444,22.5921,94.998,94.904,62.69]
[1646068333953,22.5921,94.998,94.911,167.19]
[1646068334348,1.61145242,94.997,94.903,24.6046]
[1646068335149,1.61145242,94.997,94.904,167.19]
[1646068338450,1.61145242,94.997,94.903,24.6046]
[1646068338654,9.51145242,94.997,94.903,24.6046]
[1646068338852,17.19580457,94.996,94.903,24.6046]
[1646068339057,6.07383407,94.995,94.903,24.6046]
[1646068339252,1.7355832,94.994,94.903,24.6046]
[1646068339553,15.19,94.99,94.903,24.6046]
[1646068339752,1.76257294,94.989,94.903,24.6046]
[1646068339953,1.76257294,94.989,94.904,46.67890714]
[1646068341957,4.212,94.988,94.904,46.67890714]
[1646068342457,1.76257294,94.989,94.904,46.67890714]
[1646068345962,1.76257294,94.989,94.873,104.5]
[1646068345963,17.19580457,94.988,94.873,104.5]
[1646068346160,4.213,94.987,94.873,128.8688]
[1646068346368,5.64722937,94.987,94.873,128.8688]
[1646068346761,29.01172937,94.987,94.873,128.8688]
[1646068346964,1.68222289,94.986,94.874,158.55781377]
[1646068347165,4.213,94.985,94.875,62.69]
[1646068347462,4.213,94.985,94.883,62.69]
[1646068348062,4.213,94.985,94.884,24.2112]
[1646068351166,10.99944177,94.984,94.884,24.2112]
[1646068351366,6.0434216,94.983,94.884,24.2112]
[1646068352266,15.19,94.98,94.884,24.2112]
[1646068352467,5.93905798,94.979,94.884,24.2112]
[1646068353069,1.58148821,94.977,94.884,24.2112]
[1646068353266,4.213,94.976,94.884,24.2112]
[1646068353467,15.72650917,94.976,94.884,24.2112]
[1646068353669,1.61056125,94.974,94.874,54.05781377]
[1646068353868,15.19,94.97,94.874,54.05781377]
[1646068354069,5.87551762,94.969,94.874,54.05781377]
[1646068354271,13.75326319,94.969,94.874,54.05781377]
[1646068354469,31.25493642,94.968,94.874,54.05781377]
[1646068354670,5.61411252,94.967,94.874,54.05781377]
[1646068354869,30.68766266,94.967,94.874,54.05781377]
[1646068355075,18.97730107,94.966,94.874,54.05781377]
[1646068355270,5.74947516,94.965,94.874,54.05781377]
[1646068355470,30.8230253,94.965,94.874,54.05781377]
[1646068355671,56.59484292,94.964,94.874,54.05781377]
[1646068355872,5.75216091,94.963,94.874,54.05781377]
[1646068356073,15.19,94.95,94.874,54.05781377]
[1646068356273,1.53501213,94.948,94.874,54.05781377]
[1646068356675,1.53501213,94.948,94.851,24.9432]
[1646068357074,18.7308167,94.948,94.851,24.9432]
[1646068357475,5.70081004,94.947,94.851,24.9432]
[1646068357675,5.70081004,94.947,94.869,59.95861343]
[1646068359685,17.19580457,94.946,94.851,24.9432]
[1646068359880,1.64292178,94.945,94.851,24.9432]
[1646068360081,1.63111576,94.944,94.851,24.9432]
[1646068360281,1.85693841,94.929,94.851,24.9432]
[1646068360501,1.63080356,94.927,94.851,24.9432]
[1646068360802,8.63080356,94.927,94.798,23.12]
[1646068361003,12.09374557,94.926,94.799,46.8214]
[1646068361204,29.28955014,94.926,94.799,46.8214]
[1646068361407,30.26466191,94.925,94.799,46.8214]
[1646068361604,15.19,94.91,94.802,104.5]
[1646068361804,1.7955688,94.909,94.801,48.55858408]
[1646068362006,49.1013,94.908,94.801,48.55858408]
[1646068362207,1.62537118,94.907,94.801,48.55858408]
[1646068362604,1.62537118,94.907,94.802,104.5]
[1646068362809,49.1013,94.908,94.802,104.5]
[1646068362810,49.1013,94.908,94.812,104.5]
[1646068363006,49.1013,94.908,94.816,3.110986]
[1646068363306,49.1013,94.908,94.813,23.9221]
[1646068365107,49.1013,94.908,94.819,62.69]
[1646068366115,49.1013,94.908,94.816,2.27988911]
[1646068368015,49.1013,94.908,94.821,167.19]
[1646068368214,4.216,94.942,94.821,167.19]
[1646068368413,1.37816915,94.94,94.822,2.90813944]
[1646068368614,46.6782,94.941,94.822,2.90813944]
[1646068369017,1.68338076,94.94,94.823,2.74678921]
[1646068369214,1.68338076,94.94,94.822,2.90813944]
[1646068370619,1.68338076,94.94,94.823,62.69]
[1646068370813,1.68338076,94.94,94.825,167.19]
[1646068371014,1.68338076,94.94,94.841,167.19]
[1646068371214,1.37979581,94.959,94.857,62.69]
[1646068371414,4.214,94.958,94.861,62.69]
[1646068371829,4.214,94.958,94.858,46.2796]
[1646068371830,4.214,94.958,94.871,167.19]
[1646068372027,4.214,94.958,94.872,3.12152928]
[1646068372223,4.214,94.998,94.873,167.19]
[1646068372419,112.7,95.008,94.89,189.87]
[1646068372618,4.212,95.007,94.9,15.19]
[1646068372817,4.212,95.007,94.901,191.5528]
[1646068373019,4.212,95.031,94.902,2.53525509]
[1646068373420,5.741524,95.041,94.902,2.53525509]
[1646068373818,27.51148103,95.036,94.903,2.74678921]
[1646068374018,15.3476379,95.032,94.903,2.74678921]
[1646068374220,11.61310021,95.04,94.902,2.53525509]
[1646068374419,27.51298742,95.039,94.902,2.53525509]
[1646068374619,1.5940098,95.038,94.902,2.53525509]
[1646068374822,5.66627736,95.038,94.902,2.53525509]
[1646068375019,11.61310021,95.037,94.902,2.53525509]
[1646068375222,1.35651314,95.036,94.902,2.53525509]
[1646068375420,1.35651314,95.036,94.901,24.3628]
[1646068375421,4.211,95.035,94.901,24.3628]
[1646068375619,15.19,95.02,94.901,24.3628]
[1646068375820,1.43363894,95.018,94.901,24.3628]
[1646068376420,39.95336974,95.017,94.902,104.5]
[1646068376621,1.77212245,95.016,94.901,87.0528]
[1646068376821,4.212,95.015,94.901,87.0528]
[1646068377020,17.59220537,95.015,94.901,87.0528]
[1646068377222,4.07226756,95.014,94.901,87.0528]
[1646068377424,15.19,95.01,94.901,87.0528]
[1646068377624,1.80136511,95.009,94.901,87.0528]
[1646068377922,25.81566968,95.009,94.901,87.0528]
[1646068378124,24.01430457,95.009,94.901,87.0528]
[1646068378322,24.01430457,95.008,94.901,87.0528]
[1646068378522,1.79339769,95.007,94.901,87.0528]
[1646068378723,1.79339769,95.007,94.901,24.3628]
[1646068379024,1.63434976,95.005,94.901,24.3628]
[1646068379222,15.19,95.0,94.901,24.3628]
[1646068379424,1.49673206,94.999,94.901,24.3628]
[1646068379625,25.51103663,94.999,94.901,24.3628]
[1646068380130,1.45236451,94.997,94.901,24.3628]
[1646068380522,28.22630457,94.996,94.901,24.3628]
[1646068380723,1.3581889,94.995,94.901,24.3628]
[1646068380923,4.212,94.994,94.901,24.3628]
[1646068381122,1.72639199,94.992,94.901,24.3628]
[1646068381327,4.212,94.991,94.901,24.3628]
[1646068381526,1.61862791,94.989,94.834,2.3317827]
[1646068381826,28.22730457,94.988,94.834,2.3317827]
[1646068382124,1.7859211,94.987,94.833,47.6846]
[1646068382324,5.70383023,94.986,94.876,58.07738273]